Cogmind - Beta 14 @@@ ROGUE MODE // 2025.03.31 @ 15:54:03 Player: golanco Result: Self-destructed Performance ------------- Evolutions (2) 1000 Regions Visited (4) 800 Robots Destroyed (32) 160 Value Destroyed (531) 531 Prototype IDs (3) 60 Alien Tech Used (0) 0 Bonus (-32) -32 TOTAL SCORE: 2519 Bonus ------- Follower Combat Kills 83 Friendly Fire -115 Cogmind --------- Core Integrity 550/550 Matter 270/300 Energy 100/100 System Corruption 0% Temperature Cool (0) Movement Flying (57) Location -8/Materials Parts ------- > --- POWER (1) -------- (None) > --- PROPULSION (5) --- Light Treads Flight Unit Flight Unit > --- UTILITY (3) ------ Sensor Array > --- WEAPON (2) ------- Assault Rifle > --- INVENTORY (5) ---- Hover Unit Signal Interpreter Medium Laser Peak State ------------ > --- POWER ------------ Heavy Ion Engine > --- PROPULSION ------- Light Treads Aluminum Leg > --- UTILITY ---------- Huge Storage Unit Sensor Array > --- WEAPON ----------- Medium Laser Assault Rifle > --- INVENTORY -------- Light Ion Engine Light Ion Engine Heavy Ion Engine Heavy Ion Engine Aluminum Leg Hover Unit Flight Unit Flight Unit Flight Unit Flight Unit Improved Flight Unit Huge Storage Unit Signal Interpreter Utility Shielding Light Armor Plating Medium Laser Medium Laser Small Laser Light Assault Rifle [Rating: 11] Favorites ----------- Power Light Ion Engine Engine Light Ion Engine Propulsion Aluminum Leg Treads Light Treads Leg Aluminum Leg Flight Unit Flight Unit Utility Huge Storage Unit Device Sensor Array Storage Huge Storage Unit Weapon Medium Laser Energy Gun Medium Laser Ballistic Gun Assault Rifle Ballistic Cannon Light Cannon Launcher Grenade Launcher Build | -11 -10 -10 -9 -8 ------- Run | Yrd Mat Min Mat Mat Slots Evolved 4 | . . . 2 2 Power . | . . . . . Propulsion 3 | . . . 1 2 Utility 1 | . . . 1 . Weapon . | . . . . . Parts Attached 23 | 6 10 3 4 . Power 4 | 1 1 1 1 . Engine 4 | 1 1 1 1 . Core . | . . . . . Reactor . | . . . . . Propulsion 9 | 2 2 2 3 . Treads 1 | . . 1 . . Leg 4 | 2 2 . . . Wheel . | . . . . . Hover . | . . . . . Flight 4 | . . 1 3 . Utility 4 | 1 3 . . . Device 1 | . 1 . . . Storage 3 | 1 2 . . . Processor . | . . . . . Hackware . | . . . . . Protection . | . . . . . Artifact . | . . . . . Weapon 6 | 2 4 . . . Energy Gun 3 | 2 1 . . . Energy Cannon . | . . . . . Ballistic Gun 1 | . 1 . . . Ballistic Cannon 1 | . 1 . . . Launcher 1 | . 1 . . . Special Weapon . | . . . . . Impact Weapon . | . . . . . Slashing Weapon . | . . . . . Piercing Weapon . | . . . . . Special Melee Weapon . | . . . . . Unidentified Prototypes 1 | . . . 1 . Parts Lost 6 | . 4 . 2 . Power 2 | . 2 . . . Propulsion . | . . . . . Utility 1 | . . . 1 . Weapon 3 | . 2 . 1 . Highest Loss Streak 3 | . 3 . 2 . To Critical Strikes . | . . . . . Average Slot Usage (%) 89 | . 90 100 75 . Engine 6 | . 5 14 10 . Treads 2 | . . 10 11 . Leg 25 | . 28 17 10 . Device 6 | . 5 14 11 . Storage 20 | . 22 14 10 . Energy Gun 11 | . 11 14 10 . Ballistic Gun 8 | . 7 14 11 . Ballistic Cannon 3 | . 4 . . . Launcher 2 | . 3 . . . Peak Build Rating 11 | 6 8 8 11 . Average Rating 7 | 4 7 7 8 . On Entrance 5 | . 6 7 8 5 Naked Turns . | . . . . . Heaviest Build 109 | 11 109 88 93 . Greatest Support 20 | 20 20 20 20 . Greatest Overweight (x) 5 | 3 5 4 4 . Average Overweight (x) 3 | . 3 4 2 . Largest Inventory Capacity 25 | 8 25 25 25 . Average Capacity 23 | 7 23 25 23 . Most Carried 19 | 2 12 15 19 . Average Carried 10 | 1 9 13 14 . Final Capacity 25 | 8 25 25 5 5 Final Carried 15 | 2 11 15 3 3 Class Distribution -------------------- 84% | Mutant 15% | Scavenger-Mutant Dominant Class ---------------- Mutant | -10/Materials Scavenger-Mutant | -10/Mines Scavenger-Mutant | -9/Materials Scavenger-Mutant | -8/Materials Resources | -11 -10 -10 -9 -8 ----------- Run | Yrd Mat Min Mat Mat Matter Collected 864 | 229 393 50 192 . Remotely . | . . . . . Salvage Created 864 | . 634 54 176 . Parts 61 | . 47 8 6 . Haulers Intercepted 3 | . 2 . 1 . Recyclers Shooed 1 | . . . 1 . Parts Field Recycled . | . . . . . Retrieved Matter . | . . . . . Parts Self-Destructed . | . . . . . Prevented . | . . . . . Kills | -11 -10 -10 -9 -8 ------- Run | Yrd Mat Min Mat Mat Combat Hostiles Destroyed 15 | . 12 3 . . Guns 8 | . 5 3 . . Cannons 5 | . 5 . . . AOE 2 | . 2 . . . Classes Destroyed 7 | . 7 . . . Worker 5 | . 5 . . . Hauler 3 | . 2 . 1 . Recycler 3 | . 2 . 1 . Operator 2 | . 2 . . . Watcher 3 | . 3 . . . Swarmer 6 | . 3 3 . . Grunt 10 | . 9 . 1 . Best Kill Streak 7 | . 7 3 1 . Combat Bots Only 6 | . 6 3 . . Max Kills in Single Turn 5 | . 5 1 2 . Gunslinging . | . . . . . Exploded 1 | . 1 . . . Melee . | . . . . . Uniques/NPCs Destroyed . | . . . . . Combat | -11 -10 -10 -9 -8 -------- Run | Yrd Mat Min Mat Mat Hostile Shots Fired 146 | . 94 10 42 . Missed 46 | . 27 2 17 . Damage Taken 1108 | . 861 63 184 . Core 262 | . 218 . 44 . Absorbed by Shields . | . . . . . Core Remaining (%) 67 | 100 . 12 89 . Volleys Fired 104 | . 85 4 15 . Largest 2 | . 2 2 2 . Hottest 85 | . 85 70 70 . Shots Fired 158 | . 122 8 28 . Gun 89 | . 53 8 28 . Cannon 64 | . 64 . . . Launcher 5 | . 5 . . . Special . | . . . . . Kinetic 94 | . 75 4 15 . Thermal 59 | . 42 4 13 . Explosive 5 | . 5 . . . Electromagnetic . | . . . . . Robot Hit Streak 7 | . 7 4 5 . Robot Miss Streak 4 | . 4 1 2 . Penetration Max . | . . . . . Secondary Targets . | . . . . . Shots Hit Robots 92 | . 68 4 20 . Core Hits 41 | . 34 3 4 . Critical Kills . | . . . . . Critical Parts Destroyed . | . . . . . Critical Strikes 3 | . 3 . . . Burn 2 | . 2 . . . Blast 1 | . 1 . . . Melee Attacks . | . . . . . Impact . | . . . . . Slashing . | . . . . . Piercing . | . . . . . Sneak Attacks . | . . . . . Combat Hostiles . | . . . . . Follow-up Attacks . | . . . . . Damage Inflicted 1715 | . 1419 45 251 . Guns 672 | . 376 45 251 . Cannons 717 | . 717 . . . Explosions 326 | . 326 . . . Melee . | . . . . . Ramming . | . . . . . Kinetic 919 | . 782 21 116 . Thermal 470 | . 311 24 135 . Explosive 326 | . 326 . . . Electromagnetic . | . . . . . Impact . | . . . . . Slashing . | . . . . . Piercing . | . . . . . Highest Corruption 2 | . 2 2 . . Average Corruption 2 | . 2 2 . . Corruption Purged . | . . . . . Corruption Blocked . | . . . . . Effects 32 | . 29 3 . . Message Errors 3 | . 3 . . . Matter Fused 12 | . 10 2 . . Heat Flow Errors 4 | . 3 1 . . Energy Discharges 4 | . 4 . . . Data Loss (minor) 6 | . 6 . . . Data Loss (major) 2 | . 2 . . . Weapon Failures 1 | . 1 . . . Overload Shots . | . . . . . Overflow Damage 15 | . 15 . . . Projectiles 15 | . 15 . . . Explosions . | . . . . . Melee . | . . . . . Knockbacks 10 | . 10 . . . Impact . | . . . . . Kinetic 10 | . 10 . . . Secondary . | . . . . . Self-Inflicted Damage 26 | . 26 . . . Shots 1 | . 1 . . . Rammed . | . . . . . Targets Rammed . | . . . . . Kicked . | . . . . . Crushed . | . . . . . Highest Temperature 374 | . 374 207 12 . Average Temperature 95 | . 107 56 6 . Received Heat Transfer 399 | . 399 . . . Siege Activations . | . . . . . Robots Corrupted . | . . . . . Combat Hostiles . | . . . . . Parts Fried . | . . . . . Impact Corruptions . | . . . . . Robots Melted . | . . . . . Combat Hostiles . | . . . . . Parts Melted 3 | . 3 . . . Heat Transferred 1554 | . 1073 74 407 . Parts Sabotaged . | . . . . . Parts Stolen . | . . . . . Parts Stripped . | . . . . . Power Chain Reactions . | . . . . . Alert | -11 -10 -10 -9 -8 ------- Run | Yrd Mat Min Mat Mat Peak Influence 198 | . 198 70 113 . Initial 42 | . . . 27 42 Average 47 | . 42 61 82 . Maximum Alert Level . | . . . . . Low Security (%) 100 | 100 100 100 100 . Level 1 . | . . . . . Level 2 . | . . . . . Level 3 . | . . . . . Level 4 . | . . . . . Level 5 . | . . . . . High Security . | . . . . . Max Security . | . . . . . Squads Dispatched 4 | . 4 . . . Investigation 2 | . 2 . . . Extermination . | . . . . . Reinforcement 2 | . 2 . . . Assault . | . . . . . Garrison . | . . . . . Intercept . | . . . . . Searches Triggered . | . . . . . Construction Impeded . | . . . . . Haulers Reinforced . | . . . . . Active Scanning Responses . | . . . . . Cargo Convoy Interrupts . | . . . . . Stealth | -11 -10 -10 -9 -8 --------- Run | Yrd Mat Min Mat Mat Distress Signals 5 | . 3 . 2 . Communications Jammed . | . . . . . Distress Signals . | . . . . . Times Spotted 47 | . 31 3 13 . Peak Tracking Total 4 | . 4 1 4 . Tactical Retreats 1 | . . . 1 . Traps | -11 -10 -10 -9 -8 ------- Run | Yrd Mat Min Mat Mat Traps Triggered 2 | . 2 . . . Indirectly . | . . . . . Trap Hack Attempts . | . . . . . Triggered . | . . . . . Disarmed . | . . . . . Reprogrammed . | . . . . . Reused . | . . . . . Traps Extracted . | . . . . . Installed . | . . . . . Triggered . | . . . . . Machines | -11 -10 -10 -9 -8 ---------- Run | Yrd Mat Min Mat Mat Machines Disabled 3 | . 3 . . . Max in Single Turn 1 | . 1 . . . Machines Repaired . | . . . . . Machines Dismantled . | . . . . . Machines Sabotaged . | . . . . . Overloaded Fab Kills . | . . . . . Hacking | -11 -10 -10 -9 -8 --------- Run | Yrd Mat Min Mat Mat Machines Accessed 3 | . 3 . . . Terminals 2 | . 2 . . . Fabricators . | . . . . . Repair Stations . | . . . . . Recycling Units 1 | . 1 . . . Scanalyzers . | . . . . . Garrison Access . | . . . . . Total Hacks 12 | . 12 . . . Successful 5 | . 5 . . . Failed 7 | . 7 . . . Catastrophic 1 | . 1 . . . Database Lockouts . | . . . . . Manual 8 | . 8 . . . Terminals 11 | . 11 . . . Fabricators . | . . . . . Repair Stations . | . . . . . Recycling Units 1 | . 1 . . . Scanalyzers . | . . . . . Garrison Access . | . . . . . Terminal Hacks 2 | . 2 . . . Prototype ID Bank 1 | . 1 . . . Hauler Manifests 1 | . 1 . . . Fabricator Hacks . | . . . . . Repair Station Hacks . | . . . . . Recycling Unit Hacks 1 | . 1 . . . Retrieve Components 1 | . 1 . . . Scanalyzer . | . . . . . Garrison Access Hacks . | . . . . . Unauthorized Hacks 2 | . 2 . . . Terminals 2 | . 2 . . . Botnet 2 | . 2 . . . Fabricators . | . . . . . Repair Stations . | . . . . . Recycling Units . | . . . . . Scanalyzers . | . . . . . Garrison Access . | . . . . . Data Cores Recovered . | . . . . . Used . | . . . . . Hacking Detections 3 | . 3 . . . Full Trace Events 1 | . 1 . . . Feedback Events . | . . . . . Feedback Blocked . | . . . . . Robot Schematics Acquired . | . . . . . Robots Built . | . . . . . Authchips . | . . . . . Time . | . . . . . Total Robot Build Rating . | . . . . . Part Schematics Acquired . | . . . . . Parts Built . | . . . . . Authchips . | . . . . . Time . | . . . . . Total Part Build Rating . | . . . . . Parts Repaired . | . . . . . Time . | . . . . . Parts Recycled . | . . . . . Recycled Matter . | . . . . . Retrieved Matter . | . . . . . Retrieved Components 10 | . 10 . . . Parts Scanalyzed . | . . . . . Part Schematics Acquired . | . . . . . Parts Damaged . | . . . . . Bothacking | -11 -10 -10 -9 -8 ------------ Run | Yrd Mat Min Mat Mat Used RIF Installer . | . . . . . Robots Hacked . | . . . . . Non-combat . | . . . . . Combat . | . . . . . Robot Hacks Applied . | . . . . . Relay Couplers Released . | . . . . . Fabnet Peak Effective % . | . . . . . Robots Rewired . | . . . . . Allies Hacked . | . . . . . Hacks Repelled . | . . . . . Allies | -11 -10 -10 -9 -8 -------- Run | Yrd Mat Min Mat Mat Total Allies 3 | . . 3 . . Largest Group 3 | . . 3 3 . Highest-Rated Group 40 | . . 40 40 . Highest-Rated Ally 16 | . . 16 16 . Total Orders . | . . . . . Ally Attacks 31 | . . . 31 . Total Damage 326 | . . . 326 . Kills 5 | . . . 5 . Allies Corrupted . | . . . . . Allies Melted . | . . . . . Intel | -11 -10 -10 -9 -8 ------- Run | Yrd Mat Min Mat Mat Robot Analysis Total . | . . . . . Derelict Logs Recovered . | . . . . . Drone Launches . | . . . . . Drone Recoveries . | . . . . . Exploration | -11 -10 -10 -9 -8 ------------- Run | Yrd Mat Min Mat Mat Turns Passed 3138 | 65 2476 260 337 . Spaces Moved 800 | 44 606 53 97 . Core 11 | 11 . . . . Treads 93 | . . 39 54 . Legs 653 | 33 606 14 . . Wheels . | . . . . . Hover . | . . . . . Flight 43 | . . . 43 . Fastest Speed 50 | 50 120 400 57 . Average Speed 351 | 123 368 458 292 . Slowest Speed 480 | 200 470 480 480 . Overloaded Moves . | . . . . . Propulsion Burnouts . | . . . . . Robots Hopped 1 | . . . 1 . Cave-ins Triggered . | . . . . . Exploration Rate (%) 18 | 4 55 15 15 1 Regions Visited 4 Branch Regions 1 Pre-discovered Areas . | . . . . . Known Exits Taken . | . . . . . Unknown Exits Taken 4 | 1 1 1 1 . Scrap Searched 1 | . . 1 . . Spaces Dug . | . . . . . Terrain Destroyed 23 | . 23 . . . Melee . | . . . . . Projectile 1 | . 1 . . . AOE 22 | . 22 . . . Terrain Rammed . | . . . . . Walls Destroyed . | . . . . . Machines Disabled . | . . . . . Actions | -11 -10 -10 -9 -8 --------- Run | Yrd Mat Min Mat Mat Total 965 | 51 728 65 121 . Wait 4 | . 4 . . . Move 794 | 43 605 52 94 . Hop 1 | . . . 1 . Pick Up 29 | 2 18 5 4 . Fast Attach 7 | 6 1 . . . Attach 8 | . 4 2 2 . Detach 1 | . . 1 . . Swap 8 | . 5 1 2 . Drop 9 | . 6 . 3 . Fire 104 | . 85 4 15 . Melee . | . . . . . Ram . | . . . . . Kick . | . . . . . Crush . | . . . . . Escape Stasis . | . . . . . Rewire . | . . . . . Trap . | . . . . . Miscellaneous . | . . . . . Route ------- -11/Scrapyard -10/Materials (discovered 3 exits: [*Mat x2] / [*Min]) -10/Mines -9/Materials -8/Materials History --------- Turn | Location | Event 33 | -11/Scrapyard | Discovered new exit (range 15) 66 | -11/Scrapyard | Entered Materials 312 | -10/Materials | Build established: Mutant 587 | -10/Materials | Core integrity fell below 50% 599 | -10/Materials | Discovered new exit (range 7) 814 | -10/Materials | Discovered new exit (range 9) 1078 | -10/Materials | Core integrity fell below 20% 1096 | -10/Materials | Lost 3 parts (1p2w) 1728 | -10/Materials | Discovered new exit (range 10) 2542 | -10/Materials | Entered Mines 2729 | -10/Mines | Discovered new exit (range 12) 2787 | -10/Mines | Assisted by bots powering up and referring to "LRC-V3" 2802 | -10/Mines | Entered Materials 2802 | -9/Materials | Accompanied by 3 allies 2802 | -9/Materials | Evolved 2 slots: Propulsion x1, Utility x1 2905 | -9/Materials | Build established: Scavenger-Mutant 3136 | -9/Materials | Discovered new exit (range 7) 3139 | -9/Materials | Entered another Materials area 3139 | -8/Materials | Evolved 2 slots: Propulsion x2 3139 | -8/Materials | Self-destructed Last Messages --------------- K-01 Serf collects debris. K-01 Serf cleans the Matter Pump. K-01 Serf destroyed. Acquired 20 matter. Acquired 3 matter. Acquired 1 matter. Med. Laser destroyed. Dropped Huge Storage Unit. Huge Storage Unit crushed and broken. Utility Shielding crushed and broken. K-01 Serf collects debris. Dropped Aluminum Leg. Aluminum Leg crushed and broken. Dropped Hvy. Ion Engine. Hvy. Ion Engine crushed and broken. U-05 Engineer works on Atomic Centrifuge. EXIT=FOUND PARAMETERS=PROPULSION+2 LOCATION=UNKNOWN GOAL=ESCAPE Map ----- +----------------------------------------------------+ | ??????????????????????????????? | | ??????????????????????????????? | | ??????????????????????????????? | | ??????????????????????????????? | | ??????????????????????????????? | | ??????????????????????????????? | | ??????????????????????????????? | | ??????????????????????????????? | | ??????????????????????????????? | | ??????????????????????????????? | | ??????????????????????????????? | | ??????????????????????????????? | | ??????????????????????????????? | | ??????????????????????????????? | | ???###+###????????????????????? | | ???# #????????????????????? | | ???# ????????????????????? | | ???? ?????????????????????? | | ???? ?????????????????????? | | ???? ?????????????????????? | | ????# #?????????????????????? | | ????# #?????????????????????? | | ????# #?????????????????????? | | ????# +?????????????????????? | | ????# #?????????????????????? | | ????# @ #?????????????????????? | | ????# #?????????????????????? | | ????#####?????????????????????? | | ??????????????????????????????? | | ??????????????????????????????? | | ??????????????????????????????? | | ??????????????????????????????? | | ??????????????????????????????? | | ??????????????????????????????? | | ??????????????????????????????? | | ??????????????????????????????? | | ??????????????????????????????? | | ??????????????????????????????? | | ??????????????????????????????? | | | | | | | | | | | | | | | | | | | | | | | +----------------------------------------------------+ Best States ------------- Heat Dissipation 28 Energy Generation 14 Energy Capacity 280 Matter Stores 300 Matter Capacity 300 Sight Range 16 Robot Scan Range 14 Terrain Scan Density 10 Evasion (%) 58 Recoil Reduction 1 Item Schematics ----------------- None Robot Schematics ------------------ None Fabricated ------------ Nothing Alien Tech Used ----------------- None Achievements -------------- None Challenges ------------ None Game ------ Seed RemoteChargeThrower Manual? 0 Play Time 00:12:03 Cumulative 30.3 hours Start 2025.03.31 @ 15:41:59 End 2025.03.31 @ 15:54:03 Sessions 1 Manual Loads 0 Difficulty Rogue Special Mode None Game No. 83 Rogue 83 Adventurer 0 Explorer 0 Win Type - Total 0 Types 0/0/0/0/0/0/0/0/0 Lore% 16 Gallery% 24 Achievement% 25 Wizard Run 0 Options --------- Layout 1 ASCII 0 Keyboard 0 Movement Mouse Keybinds 0 Fullscreen 1 Font 36/Smallcaps Map View 50x40 Zoom Use 0% Tactical HUD 0 Map Filters NONE Filters NONE Steam 1 RUN: 46844313-48fe-4437-b4b8-75cce5a232b1